Cogmind - Beta 14 X2 @@@ ROGUE MODE // 2024.07.30 @ 18:51:05 Player: Selene Result: Destroyed by KC-PI0(R) with Subdweller Beam Cannon Performance ------------- Evolutions (0) 0 Regions Visited (2) 400 Robots Destroyed (22) 110 Value Destroyed (686) 686 Prototype IDs (0) 0 Alien Tech Used (0) 0 Bonus (-18) -18 TOTAL SCORE: 1178 Bonus ------- Friendly Fire -18 Cogmind --------- Core Integrity 0/250 Matter 143/300 Energy 170/170 System Corruption 0% Temperature Cool (9) Movement Rolling (100) Location -10/Subcaves Parts ------- > --- POWER (1) -------- Makeshift Power Source > --- PROPULSION (2) --- Compact Wheel Compact Wheel > --- UTILITY (2) ------ Improved Heat Sink Large Storage Unit > --- WEAPON (2) ------- Grenade Launcher Hammer > --- INVENTORY (15) --- Ion Engine Ion Engine Subdweller Power Source Aluminum Leg Aluminum Leg Aluminum Leg Subdweller Monowheel Medium Storage Unit Huge Storage Unit Large Matter Pod (0) Subdweller Optics Improved Terrain Scanner Seismic Detector Scrap Shield Fragment (48) Peak State ------------ > --- POWER ------------ Light Nuclear Core > --- PROPULSION ------- Aluminum Leg Aluminum Leg > --- UTILITY ---------- Improved Heat Sink Medium Storage Unit > --- WEAPON ----------- Particle Gun Particle Gun > --- INVENTORY -------- Light Ion Engine Light Ion Engine Light Treads Light Treads Aluminum Leg Wheel Large Storage Unit Improved Terrain Scanner Seismic Detector [Rating: 14] Favorites ----------- Power Ion Engine Engine Ion Engine Power Core Light Nuclear Core Propulsion Aluminum Leg Treads Light Treads Leg Aluminum Leg Wheel Compact Wheel Utility Seismic Detector Device Seismic Detector Storage Large Storage Unit Processor Signal Interpreter Weapon Particle Gun Energy Gun Particle Gun Ballistic Cannon Battle Cannon Launcher Grenade Launcher Impact Weapon Hammer Build | -11 -10 -10 ------- Run | Yrd Mat Sub Slots Evolved . | . . . Power . | . . . Propulsion . | . . . Utility . | . . . Weapon . | . . . Parts Attached 53 | 7 30 16 Power 5 | 1 2 2 Engine 4 | 1 1 2 Core 1 | . 1 . Reactor . | . . . Propulsion 14 | 2 11 1 Treads 1 | . 1 . Leg 8 | 2 6 . Wheel 5 | . 4 1 Hover . | . . . Flight . | . . . Utility 16 | 2 10 4 Device 12 | 1 8 3 Storage 3 | 1 2 . Processor 1 | . . 1 Hackware . | . . . Protection . | . . . Artifact . | . . . Weapon 18 | 2 7 9 Energy Gun 11 | 2 6 3 Energy Cannon . | . . . Ballistic Gun . | . . . Ballistic Cannon 1 | . . 1 Launcher 2 | . . 2 Special Weapon . | . . . Impact Weapon 4 | . 1 3 Slashing Weapon . | . . . Piercing Weapon . | . . . Special Melee Weapon . | . . . Unidentified Prototypes . | . . . Parts Lost 7 | . 2 5 Power 1 | . 1 . Propulsion 1 | . . 1 Utility . | . . . Weapon 5 | . 1 4 Highest Loss Streak 4 | . 1 4 To Critical Strikes . | . . . Average Slot Usage (%) 99 | . 99 98 Engine 10 | . 7 14 Core 3 | . 6 . Treads 5 | . 1 11 Leg 12 | . 19 . Wheel 9 | . 6 16 Device 13 | . 14 13 Storage 14 | . 14 14 Energy Gun 25 | . 27 20 Impact Weapon 1 | . . 3 Naked Turns . | . . . Heaviest Build 31 | 14 31 31 Greatest Support 32 | 20 26 32 Greatest Overweight (x) 1 | . 1 1 Average Overweight (x) . | . . . Largest Inventory Capacity 15 | 8 15 15 Average Capacity 12 | 7 11 15 Most Carried 15 | 8 15 15 Average Carried 11 | 3 11 14 Final Capacity 15 | 8 15 15 Final Carried 14 | 8 14 14 Class Distribution -------------------- 63% | Mutant 36% | Scavenger-Mutant Dominant Class ---------------- Scavenger-Mutant | -10/Materials Mutant | -10/Subcaves Resources | -11 -10 -10 ----------- Run | Yrd Mat Sub Matter Collected 653 | 270 295 88 Remotely . | . . . Salvage Created 792 | 12 750 30 Parts 43 | 4 36 3 Haulers Intercepted 1 | . 1 . Recyclers Shooed . | . . . Parts Field Recycled . | . . . Retrieved Matter . | . . . Parts Self-Destructed 9 | . . 9 Prevented . | . . . Kills | -11 -10 -10 ------- Run | Yrd Mat Sub Combat Hostiles Destroyed 17 | . 15 2 Guns 14 | . 13 1 AOE 1 | . . 1 Classes Destroyed 5 | 1 3 1 Tunneler 1 | 1 . . Hauler 1 | . 1 . Watcher 3 | . 3 . Grunt 15 | . 15 . Subdweller 2 | . . 2 Best Kill Streak 3 | 1 3 1 Combat Bots Only 3 | . 3 1 Max Kills in Single Turn 1 | 1 1 1 Gunslinging . | . . . Exploded 1 | . . 1 Melee . | . . . Uniques/NPCs Destroyed . | . . . Combat | -11 -10 -10 -------- Run | Yrd Mat Sub Hostile Shots Fired 98 | . 71 27 Missed 22 | . 19 3 Damage Taken 1284 | . 737 547 Core 254 | . 113 141 Absorbed by Shields . | . . . Core Remaining (%) 100 | 100 . . Volleys Fired 86 | 1 63 22 Largest 2 | 2 2 2 Hottest 130 | 90 130 90 Shots Fired 152 | 2 122 28 Gun 137 | 2 122 13 Cannon 9 | . . 9 Launcher 6 | . . 6 Special . | . . . Kinetic 9 | . . 9 Thermal 137 | 2 122 13 Explosive 6 | . . 6 Electromagnetic . | . . . Robot Hit Streak 20 | 1 11 20 Robot Miss Streak 3 | 1 3 2 Penetration Max . | . . . Secondary Targets . | . . . Shots Hit Robots 109 | 1 90 18 Core Hits 39 | 1 34 4 Critical Kills . | . . . Critical Parts Destroyed 1 | . 1 . Critical Strikes 8 | . 8 . Burn 7 | . 7 . Smash 1 | . 1 . Melee Attacks 27 | . 2 25 Impact 27 | . 2 25 Slashing . | . . . Piercing . | . . . Sneak Attacks 1 | . 1 . Combat Hostiles . | . . . Follow-up Attacks . | . . . Damage Inflicted 1616 | 12 1282 322 Guns 1306 | 12 1245 49 Cannons 100 | . . 100 Explosions 173 | . . 173 Melee 37 | . 37 . Ramming . | . . . Kinetic 100 | . . 100 Thermal 1306 | 12 1245 49 Explosive 173 | . . 173 Electromagnetic . | . . . Impact 37 | . 37 . Slashing . | . . . Piercing . | . . . Highest Corruption . | . . . Average Corruption . | . . . Corruption Purged . | . . . Corruption Blocked . | . . . Overload Shots . | . . . Overflow Damage 37 | . 37 . Projectiles . | . . . Explosions . | . . . Melee 37 | . 37 . Knockbacks 1 | . . 1 Impact . | . . . Kinetic 1 | . . 1 Secondary . | . . . Self-Inflicted Damage 39 | . . 39 Shots 2 | . . 2 Rammed . | . . . Targets Rammed . | . . . Kicked . | . . . Crushed . | . . . Highest Temperature 303 | 30 303 . Average Temperature 88 | 17 89 . Received Heat Transfer 492 | . 345 147 Effects 2 | . 2 . Interference 2 | . 2 . Siege Activations . | . . . Robots Corrupted . | . . . Combat Hostiles . | . . . Parts Fried . | . . . Impact Corruptions 1 | . 1 . Robots Melted 2 | . 2 . Combat Hostiles 2 | . 2 . Parts Melted 6 | . 6 . Heat Transferred 3877 | 25 3716 136 Parts Sabotaged . | . . . Parts Stolen . | . . . Parts Stripped . | . . . Power Chain Reactions . | . . . Alert | -11 -10 -10 ------- Run | Yrd Mat Sub Peak Influence 235 | 5 235 . Initial 3 | . 3 . Average 101 | . 108 . Maximum Alert Level 1 | . 1 . Low Security (%) 94 | 100 93 . Level 1 6 | . 6 . Level 2 . | . . . Level 3 . | . . . Level 4 . | . . . Level 5 . | . . . High Security . | . . . Max Security . | . . . Squads Dispatched 6 | . 6 . Investigation 4 | . 4 . Extermination . | . . . Reinforcement 2 | . 2 . Assault . | . . . Garrison . | . . . Intercept . | . . . Searches Triggered . | . . . Construction Impeded . | . . . Haulers Reinforced . | . . . Active Scanning Responses . | . . . Cargo Convoy Interrupts . | . . . Stealth | -11 -10 -10 --------- Run | Yrd Mat Sub Distress Signals 2 | . 2 . Communications Jammed . | . . . Distress Signals . | . . . Times Spotted 34 | . 30 4 Peak Tracking Total 4 | . 4 1 Tactical Retreats 6 | . 5 1 Traps | -11 -10 -10 ------- Run | Yrd Mat Sub Traps Triggered 5 | . 5 . Indirectly . | . . . Trap Hack Attempts . | . . . Triggered . | . . . Disarmed . | . . . Reprogrammed . | . . . Reused . | . . . Traps Extracted . | . . . Installed . | . . . Triggered . | . . . Machines | -11 -10 -10 ---------- Run | Yrd Mat Sub Machines Disabled . | . . . Max in Single Turn . | . . . Machines Repaired . | . . . Machines Dismantled . | . . . Machines Sabotaged . | . . . Overloaded Fab Kills . | . . . Hacking | -11 -10 -10 --------- Run | Yrd Mat Sub Machines Accessed 9 | . 8 1 Terminals 5 | . 5 . Fabricators . | . . . Repair Stations 1 | . 1 . Recycling Units 2 | . 2 . Scanalyzers . | . . . Garrison Access . | . . . Total Hacks 29 | . 25 4 Successful 15 | . 11 4 Failed 14 | . 14 . Catastrophic 2 | . 2 . Database Lockouts . | . . . Manual 14 | . 14 . Terminals 18 | . 18 . Fabricators . | . . . Repair Stations 1 | . 1 . Recycling Units 6 | . 6 . Scanalyzers . | . . . Garrison Access . | . . . Terminal Hacks 10 | . 6 4 Record 4 | . . 4 Robot Analysis 2 | . 2 . Locate Traps 1 | . 1 . Recall Reinforcements 1 | . 1 . Registered Components 1 | . 1 . Zone Layout 1 | . 1 . Fabricator Hacks . | . . . Repair Station Hacks . | . . . Recycling Unit Hacks 2 | . 2 . Retrieve Components 2 | . 2 . Scanalyzer . | . . . Garrison Access Hacks . | . . . Unauthorized Hacks 3 | . 3 . Terminals 1 | . 1 . Botnet 1 | . 1 . Fabricators . | . . . Repair Stations . | . . . Recycling Units 2 | . 2 . Reject 2 | . 2 . Scanalyzers . | . . . Garrison Access . | . . . Data Cores Recovered . | . . . Used . | . . . Hacking Detections 7 | . 7 . Full Trace Events . | . . . Feedback Events . | . . . Feedback Blocked . | . . . Robot Schematics Acquired . | . . . Robots Built . | . . . Authchips . | . . . Time . | . . . Total Robot Build Rating . | . . . Part Schematics Acquired . | . . . Parts Built . | . . . Authchips . | . . . Time . | . . . Total Part Build Rating . | . . . Parts Repaired . | . . . Time . | . . . Parts Recycled . | . . . Recycled Matter . | . . . Retrieved Matter . | . . . Retrieved Components 10 | . 10 . Parts Scanalyzed . | . . . Part Schematics Acquired . | . . . Parts Damaged . | . . . Bothacking | -11 -10 -10 ------------ Run | Yrd Mat Sub Used RIF Installer . | . . . Robots Hacked . | . . . Non-combat . | . . . Combat . | . . . Robot Hacks Applied . | . . . Relay Couplers Released . | . . . Fabnet Peak Effective % . | . . . Robots Rewired . | . . . Allies Hacked . | . . . Hacks Repelled . | . . . Allies | -11 -10 -10 -------- Run | Yrd Mat Sub Total Allies . | . . . Largest Group . | . . . Highest-Rated Group . | . . . Highest-Rated Ally . | . . . Total Orders . | . . . Ally Attacks . | . . . Total Damage . | . . . Kills . | . . . Allies Corrupted . | . . . Allies Melted . | . . . Intel | -11 -10 -10 ------- Run | Yrd Mat Sub Robot Analysis Total 2 | . 2 . Derelict Logs Recovered . | . . . Drone Launches . | . . . Drone Recoveries . | . . . Exploration | -11 -10 -10 ------------- Run | Yrd Mat Sub Turns Passed 2196 | 92 1358 746 Spaces Moved 1218 | 59 656 503 Core 4 | 4 . . Treads 11 | . 11 . Legs 445 | 55 390 . Wheels 758 | . 255 503 Hover . | . . . Flight . | . . . Fastest Speed 50 | 50 95 100 Average Speed 128 | 115 141 112 Slowest Speed 240 | 120 240 115 Overloaded Moves . | . . . Propulsion Burnouts . | . . . Robots Hopped . | . . . Cave-ins Triggered . | . . . Exploration Rate (%) 44 | 5 99 30 Regions Visited 2 Branch Regions 1 Pre-discovered Areas 1 | . . 1 Known Exits Taken . | . . . Unknown Exits Taken 2 | 1 1 . Scrap Searched 1 | . . 1 Spaces Dug 10 | . 1 9 Terrain Destroyed 36 | . 1 35 Melee 10 | . 1 9 Projectile . | . . . AOE 26 | . . 26 Terrain Rammed . | . . . Walls Destroyed . | . . . Machines Disabled . | . . . Actions | -11 -10 -10 --------- Run | Yrd Mat Sub Total 1648 | 77 965 606 Wait 206 | 3 168 35 Move 1216 | 58 655 503 Hop . | . . . Pick Up 37 | 8 24 5 Fast Attach 7 | 7 . . Attach 7 | . 2 5 Detach . | . . . Swap 39 | . 28 11 Drop 23 | . 23 . Fire 86 | 1 63 22 Melee 27 | . 2 25 Ram . | . . . Kick . | . . . Crush . | . . . Escape Stasis . | . . . Rewire . | . . . Trap . | . . . Miscellaneous . | . . . Route ------- -11/Scrapyard -10/Materials (discovered 6 exits: [*Mat x3] / [*Min x2] / *Sub) -10/Subcaves History --------- Turn | Location | Event 9 | -11/Scrapyard | Discovered new exit (range 16) 93 | -11/Scrapyard | Entered Materials 101 | -10/Materials | Discovered new exit (range 16) 313 | -10/Materials | Build established: Mutant 531 | -10/Materials | Discovered new exit (range 11) 723 | -10/Materials | Discovered new exit (range 16) 726 | -10/Materials | Build established: Scavenger-Mutant 1015 | -10/Materials | Discovered new exit (range 7) 1222 | -10/Materials | Discovered new exit (range 16) 1449 | -10/Materials | Discovered new exit (range 3) 1451 | -10/Materials | Entered Subcaves 1501 | -10/Subcaves | Build established: Mutant 1534 | -10/Subcaves | Visited Clippyterm 1538 | -10/Subcaves | Learned Research security intel 1657 | -10/Subcaves | Shifting Twisted Machinery released Sub. Monowheel 1728 | -10/Subcaves | Core integrity fell below 50% 1739 | -10/Subcaves | A swath of the cavern ceiling suddenly collapsed 1970 | -10/Subcaves | Learned location of Zion (-7) 1970 | -10/Subcaves | Met a Zionite searching for "candidates" 2104 | -10/Subcaves | Core integrity fell below 20% 2116 | -10/Subcaves | Lost 4 parts (1n3w) 2197 | -10/Subcaves | Destroyed by KC-PI0(R) with Subdweller Beam Cannon Last Messages --------------- World map updated: -7/Zion. 01989_ Searching scrap... 01989_ Found Battle Cannon. 01989_ Found 58 Matter. 01990_ Acquired 58 matter. 01992_ Acquired Battle Cannon. 02063_ Med. Laser destroyed. 02067_ Sml. Laser destroyed. 02073_ Lgt. Treads destroyed. 02084_ DQ-0D0(R) knocked back. 02085_ Battle Cannon destroyed. 02103_ HR-YX6(z) destroyed. 02104_ IB-YOF(z) pulls a Mak. Shrapnel Gun out of the Twisted Machinery. 02104_ DQ-0D0(R) destroyed. 02111_ Subatomizers dissect the Lrg. Matter Pod. 02115_ Acquired Lrg. Matter Pod. 02119_ Acquired Scrap Shield Fragment. 02125_ Subatomizers dissect the Sub. Optics. 02180_ IB-YOF(z) destroyed. Map ----- +----------------------------------------------------+ | ## ##?# ### ""###"*"# ????????? | | ## ### #### " "#""##"## #?????????? | | ### ##??## ### " ####"#"# #?????????? | | #?## #????####?###### #"#""## #?????????? | | #??####???????????????# #"####?????????? | | ## ##?????????????????????###" #"#??????????? | | #####????????????????????????####""###????????? | | #???????????????????????????????##"""##???????? | | ##????????????????????????????????#""""#???????? | | ###?????????????????????????????????### "####????? | | ?????????????????????????????????????# # # ##???? | | ?????????????????????????????????????# # ##### | | #????????????????????????????????????## ## # ## | | #??????????????????????????????????## | | ????????????????????????????????# | | ??????????????????????????????# # | | #?????????????????????????????# ### | | ? #??????????????????????????????# #### | | ?? "#??????????????????????????????### #### | | ???""?????????????????????????????????# ##??# | | ??????????????????????????????????????######## # | | ??????????????????# ???##??????????????#### # ### | | ??????????????????# ### ##????##???#### ## #? | | ?????????????????## ### ##### # ##? | | ?????????????????# #?? | | ???????????"" @ R #####?? | | ?????????? ## ## ##?????? | | ??????????????????????## ##### #??????? | | ???????????????????????# #?## ####???? | | ???????????????????????## ###### ##??? | | ????????????????????????## ##?# # ##?? | | ?????????????????????????## ##?## ## ### | | ??????????????????????????####??# ## ## | | ???????????????????????????????## ## | | ????????????????????????????#### # | | ????????????????????????????# # ## # """ ! ### | | ?????????????????????????????# ##### """"% #??? | | ????????????????????????????# #??# " "" #??? | | ????????????????????????????#####??## "" #??? | | ???????????????????????????????????# & ""#??? | | ??????????????????????????????????## # ###??# | | ?????????????????????????????????## #??##" | | ???????????????????????????????### "#" #### " | | ???????????????????????????????# ## " "# #"" | | ???????????????????????????????# ##### """"# | | ???????????????????????????????## #???# """ """# | | ????????????????????????????????## #???###### # | | ?????????????????????????????????###????????####%# | | ???????????????????????????????????????????????# | | ???????????????????????????????????????????????##" | +----------------------------------------------------+ Best States ------------- Heat Dissipation 39 Energy Generation 15 Energy Capacity 250 Matter Stores 300 Matter Capacity 300 Sight Range 16 Terrain Scan Density 10 Evasion (%) 55 Recoil Reduction 1 Item Schematics ----------------- None Robot Schematics ------------------ None Fabricated ------------ Nothing Alien Tech Used ----------------- None Achievements -------------- None Challenges ------------ None Game ------ Seed NeutrinoPointyCompanion Manual? 0 Play Time 00:22:25 Cumulative 113.9 hours Start 2024.07.30 @ 18:31:14 End 2024.07.30 @ 18:51:05 Sessions 1 Manual Loads 0 Difficulty Rogue Special Mode None Game No. 73 Rogue 70 Adventurer 3 Explorer 0 Win Type - Total 2 Types 2/0/0/0/0/0/0/0/0 Lore% 49 Gallery% 58 Achievement% 50 Wizard Run 0 Options --------- Layout 2 ASCII 0 Keyboard 1 Movement Vi Keybinds 1 Fullscreen 2 Font 24/Smallcaps Map View 50x44 Zoom Use 0% Tactical HUD 1 Map Filters NONE Filters NONE Steam 1 RUN: ce0098e2-7f3d-4c24-a2bc-e80260fd19f8